fUSD/lending_fUSD_20260404
["ID","MTS","AMOUNT","RATE_DAILY","PERIOD"]
[419683686,1775280693519,-500.0,0.00036054,9]
[419683687,1775280693528,-626.41,0.00036054,9]
[419683688,1775280693538,-756.26,0.00036054,9]
[419683689,1775280693548,-530.68,0.00036054,9]
[419683690,1775280693558,-500.0,0.00036054,9]
[419683691,1775280693568,-500.0,0.00036054,9]
[419683692,1775280693577,-562.37,0.00036054,9]
[419683693,1775280693587,-500.0,0.00036054,9]
[419683694,1775280693598,-500.0,0.00036054,9]
[419683695,1775280693608,-1126.98,0.00036054,9]
[419683696,1775280693617,-4642.6,0.00036054,9]
[419683697,1775280693627,-500.0,0.00036054,9]
[419683698,1775280693636,-500.0,0.00036054,9]
[419683699,1775280693646,-500.0,0.00036054,9]
[419683700,1775280693655,-719.42,0.00036054,9]
[419683701,1775280693665,-934.37,0.00036054,9]
[419683702,1775280693674,-852.29,0.00036054,9]
[419683703,1775280693683,-500.0,0.00036054,9]
[419683704,1775280693692,-1707.71,0.00036054,9]
[419683705,1775280693702,-500.0,0.00036054,9]
[419683706,1775280693712,-1282.76,0.00036054,9]
[419683707,1775280693721,-1051.09,0.00036054,9]
[419683708,1775280693731,-500.0,0.00036054,9]
[419683709,1775280693740,-500.0,0.00036054,9]
[419683710,1775280693750,-500.0,0.00036054,9]
[419683711,1775280693759,-500.0,0.00036054,9]
[419683712,1775280693769,-500.0,0.00036054,9]
[419683713,1775280693779,-902.05,0.00036054,9]
[419683714,1775280693788,-500.0,0.00036054,9]
[419683715,1775280693797,-500.0,0.00036054,9]
[419683716,1775280693807,-500.0,0.00036054,9]
[419683717,1775280693816,-300.83998373,0.00036054,9]
[419683718,1775280693827,-278.50493675,0.00036054,9]
[419683719,1775280693838,-500.0,0.00036054,9]
[419683720,1775280693847,-806.91,0.00036054,9]
[419683721,1775280693859,-500.0,0.00036054,9]
[419683722,1775280693868,-822.76,0.00036054,9]
[419683723,1775280693878,-743.05,0.00036054,9]
[419683724,1775280693888,-500.0,0.00036054,9]
[419683725,1775280693899,-513.9973202,0.00036054,9]
[419683726,1775280693908,-779.38,0.00036054,9]
[419683727,1775280693917,-585.27,0.00036054,9]
[419683728,1775280693927,-1274.82,0.00036054,9]
[419683729,1775280693936,-1211.04,0.00036054,9]
[419683730,1775280693946,-500.0,0.00036054,9]
[419683731,1775280693955,-502.69,0.00036054,9]
[419683732,1775280693964,-1740.09,0.00036054,9]
[419683733,1775280693974,-500.0,0.00036054,9]
[419683734,1775280693983,-500.0,0.00036054,9]
[419683735,1775280693992,-500.0,0.00036054,9]
[419683736,1775280694001,-500.0,0.00036054,9]
[419683737,1775280694011,-1274.67,0.00036054,9]
[419683738,1775280694020,-500.0,0.00036054,9]
[419683739,1775280694030,-500.0,0.00036054,9]
[419683740,1775280694040,-500.0,0.00036054,9]
[419683741,1775280694051,-505.20318461,0.00036164,2]
[419683742,1775280694060,-500.0,0.00036164,9]
[419683743,1775280694070,-500.0,0.00036164,9]
[419683744,1775280694079,-500.0,0.00036164,9]
[419683745,1775280694088,-500.0,0.00036164,9]
[419683746,1775280694097,-500.0,0.00036164,9]
[419683747,1775280694106,-500.0,0.00036164,9]
[419683748,1775280694115,-500.0,0.00036164,9]
[419683749,1775280694125,-500.0,0.00036164,9]
[419683750,1775280694134,-1654.57,0.00036164,9]
[419683751,1775280694144,-631.05,0.00036164,9]
[419683752,1775280694153,-500.0,0.00036164,9]
[419683753,1775280694163,-500.0,0.00036164,9]
[419683754,1775280694172,-853.47,0.00036164,9]
[419683755,1775280694182,-500.0,0.00036164,9]
[419683756,1775280694194,-500.0,0.00036164,9]
[419683757,1775280694203,-500.0,0.00036164,9]
[419683758,1775280694212,-593.37,0.00036164,9]
[419683759,1775280694223,-500.0,0.00036164,9]
[419683760,1775280694232,-533.66228549,0.00036164,9]
[419683761,1775280694243,-272.07703959,0.00036164,9]
[419683762,1775280694252,-534.57877728,0.00036164,9]
[419683763,1775280694261,-500.0,0.00036164,9]
[419683764,1775280694271,-500.0,0.00036164,9]
[419683765,1775280694280,-500.0,0.00036164,9]
[419683766,1775280694289,-500.0,0.00036164,2]
[419683767,1775280694298,-500.0,0.00036164,9]
[419683768,1775280694307,-500.0,0.00036164,9]
[419683769,1775280694316,-500.0,0.00036164,9]
[419683770,1775280694326,-500.0,0.00036164,9]
[419683771,1775280694335,-500.0,0.00036164,9]
[419683772,1775280694344,-984.19,0.00036164,9]
[419683773,1775280694353,-500.0,0.00036164,9]
[419683774,1775280694362,-500.0,0.00036164,9]
[419683775,1775280694371,-500.0,0.00036164,9]
[419683776,1775280694380,-500.0,0.00036164,9]
[419683777,1775280694391,-500.0,0.00036164,9]
[419683778,1775280694401,-500.0,0.00036164,9]
[419683779,1775280694410,-735.78,0.00036164,9]
[419683780,1775280694421,-500.0,0.00036164,9]
[419683781,1775280694433,-500.0,0.00036164,9]
[419683782,1775280694444,-500.0,0.00036164,9]
[419683783,1775280694454,-500.0,0.00036164,9]
[419683784,1775280694463,-500.0,0.00036164,9]
[419683785,1775280694473,-500.0,0.00036164,9]
[419683786,1775280694483,-560.5,0.00036164,9]
[419683787,1775280694492,-500.0,0.00036164,9]
[419683788,1775280694502,-517.96,0.00036164,9]
[419683789,1775280694512,-500.0,0.00036164,9]
[419683790,1775280694523,-500.0,0.00036164,9]
[419683791,1775280694533,-500.0,0.00036164,9]
[419683792,1775280694542,-500.0,0.00036164,9]
[419683793,1775280694552,-500.0,0.00036164,9]
[419683794,1775280694561,-500.0,0.00036164,9]
[419683795,1775280694571,-500.0,0.00036164,9]
[419683796,1775280694582,-703.63,0.00036164,9]
[419683797,1775280694592,-500.0,0.00036164,9]
[419683798,1775280694601,-500.0,0.00036164,9]
[419683799,1775280694611,-300.0,0.00036164,2]
[419683800,1775280694620,-259.5174431,0.00036164,9]
[419683801,1775280694630,-500.0,0.00036164,9]
[419683802,1775280694639,-1469.43,0.00036164,9]
[419683803,1775280694648,-500.0,0.00036164,5]
[419683804,1775280694658,-500.0,0.00036164,9]
[419683805,1775280694668,-500.0,0.00036164,9]
[419683806,1775280694679,-500.0,0.00036164,9]
[419683807,1775280694688,-783.24,0.00036164,9]
[419683808,1775280694698,-1424.16,0.00036164,9]
[419683809,1775280694707,-500.0,0.00036164,9]
[419683810,1775280694716,-500.0,0.00036164,9]
[419683811,1775280694726,-500.0,0.00036164,9]
[419683812,1775280694736,-500.0,0.00036164,9]
[419683813,1775280694745,-151.0,0.00036164,7]
[419683814,1775280694755,-500.0,0.00036164,9]
[419683815,1775280694764,-500.0,0.00036164,9]
[419683816,1775280694773,-968.63,0.00036164,9]
[419683817,1775280694783,-500.0,0.00036164,9]
[419683818,1775280694792,-1208.88,0.00036164,9]
[419683819,1775280694802,-500.0,0.00036164,9]
[419683820,1775280694811,-407.11875014,0.00036164,9]
[419683821,1775280694820,-500.0,0.00036164,9]
[419683822,1775280694830,-500.0,0.00036164,9]
[419683823,1775280694839,-500.0,0.00036164,9]
[419683824,1775280694849,-500.0,0.00036164,9]
[419683825,1775280694858,-500.0,0.00036164,9]
[419683826,1775280694868,-640.15,0.00036164,9]
[419683827,1775280694877,-500.0,0.00036164,9]
[419683828,1775280694886,-500.0,0.00036164,9]
[419683829,1775280694896,-500.0,0.00036164,9]
[419683830,1775280694906,-500.0,0.00036164,9]
[419683831,1775280694917,-500.0,0.00036164,9]
[419683832,1775280694927,-500.0,0.00036164,9]
[419683833,1775280694937,-500.0,0.00036164,9]
[419683834,1775280694946,-500.0,0.00036164,9]
[419683835,1775280694956,-500.0,0.00036164,9]
[419683836,1775280694966,-508.31700076,0.00036164,9]
[419683837,1775280694975,-2077.05,0.00036164,9]
[419683838,1775280694985,-500.0,0.00036164,9]
[419683839,1775280694994,-500.0,0.00036164,9]
[419683840,1775280695004,-500.0,0.00036164,9]
[419683841,1775280695013,-500.0,0.00036164,9]
[419683842,1775280695023,-500.0,0.00036164,9]
[419683843,1775280695033,-500.0,0.00036164,9]
[419683844,1775280695043,-151.0,0.00036164,7]
[419683845,1775280695053,-500.0,0.00036164,9]
[419683846,1775280695063,-500.0,0.00036164,9]
[419683847,1775280695073,-151.0,0.00036164,7]
[419683848,1775280695083,-555.52679329,0.00036164,2]
[419683849,1775280695093,-918.91,0.00036164,9]
[419683850,1775280695103,-500.0,0.00036164,9]
[419683851,1775280695112,-414.51003095,0.00036164,9]
[419683852,1775280695122,-500.0,0.00036164,9]
[419683853,1775280695132,-500.0,0.00036164,9]
[419683854,1775280695142,-606.54,0.00036164,9]
[419683855,1775280695151,-500.0,0.00036164,9]
[419683856,1775280695161,-723.75,0.00036164,9]
[419683857,1775280695171,-500.0,0.00036164,9]
[419683858,1775280695181,-1422.15,0.00036164,9]
[419683859,1775280695190,-364.294331,0.00036164,9]
[419683860,1775280695200,-1455.47,0.00036164,9]
[419683861,1775280695332,-500.0,0.00036164,9]
[419683862,1775280695344,-1430.79,0.00036164,9]
[419683863,1775280695355,-500.0,0.00036164,9]
[419683864,1775280695365,-734.9,0.00036164,9]
[419683865,1775280695375,-500.0,0.00036164,9]
[419683866,1775280695384,-422.2604246,0.00036164,9]
[419683867,1775280695394,-802.74,0.00036164,9]
[419683868,1775280695403,-835.82,0.00036164,9]
[419683869,1775280695413,-500.0,0.00036164,9]
[419683870,1775280695422,-798.67,0.00036164,9]
[419683871,1775280695432,-500.0,0.00036164,9]
[419683872,1775280695442,-500.0,0.00036164,9]
[419683873,1775280695452,-500.0,0.00036164,9]
[419683874,1775280695462,-500.0,0.00036164,9]
[419683875,1775280695471,-901.72,0.00036164,9]
[419683876,1775280695480,-500.0,0.00036164,9]
[419683877,1775280695490,-500.0,0.00036164,9]
[419683878,1775280695499,-500.0,0.00036164,9]
[419683879,1775280695508,-1123.46,0.00036164,9]
[419683880,1775280695518,-1044.33,0.00036164,9]
[419683881,1775280695527,-1230.08,0.00036164,9]
[419683882,1775280695537,-1693.82,0.00036164,9]
[419683883,1775280695546,-500.0,0.00036164,9]
[419683884,1775280695556,-500.0,0.00036164,2]
[419683885,1775280695565,-1596.49,0.00036164,9]
[419683886,1775280695575,-500.0,0.00036164,9]
[419683887,1775280695585,-1061.35,0.00036164,9]
[419683888,1775280695595,-500.0,0.00036164,9]
[419683889,1775280695604,-1492.49,0.00036164,9]
[419683890,1775280695616,-500.0,0.00036164,9]
[419683891,1775280695625,-500.0,0.00036164,9]
[419683892,1775280695634,-550.97,0.00036164,9]
[419683893,1775280695644,-653.46,0.00036164,9]
[419683894,1775280695654,-500.0,0.00036164,9]
[419683895,1775280695663,-500.0,0.00036164,9]
[419683896,1775280695673,-500.0,0.00036164,9]
[419683897,1775280695683,-500.0,0.00036164,9]
[419683898,1775280695692,-500.0,0.00036164,9]
[419683899,1775280695702,-500.0,0.00036164,9]
[419683900,1775280695711,-1492.94,0.00036164,7]
[419683901,1775280695720,-500.0,0.00036164,9]
[419683902,1775280695730,-1209.29,0.00036164,9]
[419683903,1775280695739,-432.31767524,0.00036164,9]
[419683904,1775280695749,-500.0,0.00036164,9]
[419683905,1775280695759,-504.2,0.00036164,9]
[419683906,1775280695768,-500.0,0.00036164,9]
[419683907,1775280695778,-1338.82,0.00036164,9]
[419683908,1775280695787,-481.06434295,0.00036164,9]
[419683909,1775280695797,-596.4937181,0.00036164,9]
[419683910,1775280695806,-891.16,0.00036164,9]
[419683911,1775280695816,-151.0,0.00036164,7]
[419683912,1775280695826,-151.0,0.00036164,7]
[419683913,1775280695836,-500.0,0.00036164,9]
[419683914,1775280695845,-1892.58,0.00036164,9]
[419683915,1775280695855,-500.0,0.00036164,9]
[419683916,1775280695864,-151.0,0.00036164,7]
[419683917,1775280695874,-262.563496,0.00036164,7]
[419683918,1775280695883,-500.0,0.00036164,9]
[419683919,1775280695893,-500.0,0.00036164,9]
[419683920,1775280695903,-500.0,0.00036164,9]
[419683921,1775280695912,-500.0,0.00036164,9]
[419683922,1775280695921,-500.0,0.00036164,9]
[419683923,1775280695931,-500.0,0.00036164,9]
[419683924,1775280695940,-1108.7,0.00036164,9]
[419683925,1775280695950,-500.0,0.00036164,9]
[419683926,1775280695959,-500.0,0.00036164,9]
[419683927,1775280695969,-500.0,0.00036164,9]
[419683928,1775280695978,-1457.69,0.00036164,9]
[419683929,1775280695988,-500.0,0.00036164,9]
[419683930,1775280695997,-500.0,0.00036164,9]
[419683931,1775280696007,-634.0,0.00036164,9]
[419683932,1775280696016,-500.0,0.00036164,9]
[419683933,1775280696025,-935.11,0.00036164,9]
[419683934,1775280696035,-901.08,0.00036164,9]
[419683935,1775280696044,-500.0,0.00036164,9]
[419683936,1775280696054,-500.0,0.00036164,9]
[419683937,1775280696063,-500.0,0.00036164,9]
[419683938,1775280696072,-500.0,0.00036164,9]
[419683939,1775280696082,-500.0,0.00036164,9]
[419683940,1775280696091,-990.0,0.00036164,9]
[419683941,1775280696100,-500.0,0.00036164,9]
[419683942,1775280696109,-500.0,0.00036164,9]
[419683943,1775280696119,-770.94,0.00036164,9]
[419683944,1775280696127,-500.0,0.00036164,9]
[419683945,1775280696137,-500.0,0.00036164,9]
[419683946,1775280696146,-932.82,0.00036164,9]
[419683947,1775280696155,-500.0,0.00036164,9]
[419683948,1775280696165,-500.0,0.00036164,9]
[419683949,1775280696174,-500.0,0.00036164,9]
[419683950,1775280696183,-500.0,0.00036164,9]
[419683951,1775280696192,-500.0,0.00036164,9]
[419683952,1775280696201,-500.0,0.00036164,9]
[419683953,1775280696211,-500.0,0.00036164,9]
[419683954,1775280696220,-500.0,0.00036164,9]
[419683955,1775280696229,-1194.92,0.00036164,9]
[419683956,1775280696239,-500.0,0.00036164,9]
[419683957,1775280696248,-1294.2,0.00036164,9]
[419683958,1775280696258,-500.0,0.00036164,9]
[419683959,1775280696268,-500.0,0.00036164,9]
[419683960,1775280696277,-610.34,0.00036164,9]
[419683961,1775280696287,-711.02,0.00036164,9]
[419683962,1775280696296,-500.0,0.00036164,9]
[419683963,1775280696306,-521.17,0.00036164,9]
[419683964,1775280696315,-505.81,0.00036164,9]
[419683965,1775280696324,-523.09,0.00036164,9]
[419683966,1775280696333,-744.02,0.00036164,9]
[419683967,1775280696343,-500.0,0.00036164,9]
[419683968,1775280696352,-500.0,0.00036164,9]
[419683969,1775280696363,-590.44,0.00036164,9]
[419683970,1775280696372,-2226.41,0.00036164,9]
[419683971,1775280696381,-500.0,0.00036164,9]
[419683972,1775280696391,-500.0,0.00036164,9]
[419683973,1775280696400,-500.0,0.00036164,9]
[419683974,1775280696409,-1037.6,0.00036164,9]
[419683975,1775280696419,-500.0,0.00036164,9]
[419683976,1775280696428,-663.14,0.00036164,9]
[419683977,1775280696437,-391.04821718,0.00036164,9]
[419683978,1775280696447,-310.90165832,0.00036164,9]
[419683979,1775280696456,-500.0,0.00036164,9]
[419683980,1775280696465,-500.0,0.00036164,9]
[419683981,1775280696474,-609.59,0.00036164,9]
[419683982,1775280696483,-500.0,0.00036164,9]
[419683983,1775280696492,-1020.17,0.00036164,9]
[419683984,1775280696502,-500.0,0.00036164,9]
[419683985,1775280696511,-522.08256539,0.00036164,9]
[419683986,1775280696520,-500.0,0.00036164,9]
[419683987,1775280696529,-500.0,0.00036164,9]
[419683988,1775280696538,-1585.05,0.00036164,9]
[419683989,1775280696547,-1171.59,0.00036164,9]
[419683990,1775280696557,-1101.01,0.00036164,9]
[419683991,1775280696566,-151.0,0.00036164,7]
[419683992,1775280696576,-232.51705618,0.00036164,9]
[419683993,1775280696585,-500.0,0.00036164,9]
[419683994,1775280696595,-342.29954503,0.00036164,9]
[419683995,1775280696605,-1263.62,0.00036164,9]
[419683996,1775280696614,-631.83,0.00036164,9]
[419683997,1775280696623,-500.0,0.00036164,9]
[419683998,1775280696633,-500.0,0.00036164,9]
[419683999,1775280696643,-500.0,0.00036164,9]
[419684000,1775280696652,-500.0,0.00036164,9]
[419684001,1775280696661,-500.0,0.00036164,9]
[419684002,1775280696670,-898.46,0.00036164,9]
[419684003,1775280696679,-500.0,0.00036164,9]
[419684004,1775280696689,-500.0,0.00036164,9]
[419684005,1775280696698,-1196.16,0.00036164,9]
[419684006,1775280696707,-496.35400335,0.00036164,9]
[419684007,1775280696717,-814.86,0.00036164,9]
[419684008,1775280696726,-500.0,0.00036164,9]
[419684009,1775280696736,-500.0,0.00036164,9]
[419684010,1775280696745,-500.0,0.00036164,9]
[419684011,1775280696754,-500.0,0.00036164,9]
[419684012,1775280696763,-500.0,0.00036164,9]
[419684013,1775280696772,-580.26159628,0.00036164,9]
[419684014,1775280696782,-755.32,0.00036164,9]
[419684015,1775280696792,-500.0,0.00036164,9]
[419684016,1775280696801,-500.0,0.00036164,9]
[419684017,1775280696810,-500.0,0.00036164,9]
[419684018,1775280696819,-256.33110718,0.00036164,9]
[419684019,1775280696828,-500.0,0.00036164,9]
[419684020,1775280696838,-500.0,0.00036164,9]
[419684021,1775280696847,-547.91186759,0.00036164,9]
[419684022,1775280696857,-1238.58,0.00036164,9]
[419684023,1775280696866,-500.0,0.00036164,9]
[419684024,1775280696875,-729.81,0.00036164,9]
[419684025,1775280696884,-500.0,0.00036164,9]
[419684026,1775280696894,-500.0,0.00036164,9]
[419684027,1775280696903,-500.0,0.00036164,9]
[419684028,1775280696913,-500.0,0.00036164,9]
[419684029,1775280696922,-500.0,0.00036164,9]
[419684030,1775280696932,-151.0,0.00036164,7]
[419684031,1775280696941,-500.0,0.00036164,9]
[419684032,1775280696950,-500.0,0.00036164,9]
[419684033,1775280696960,-893.0,0.00036164,9]
[419684034,1775280696970,-1378.5,0.00036164,9]
[419684035,1775280696979,-2230.54,0.00036164,9]
[419684036,1775280696988,-500.0,0.00036164,9]
[419684037,1775280696998,-500.0,0.00036164,9]
[419684038,1775280697007,-449.48718357,0.00036164,9]
[419684039,1775280697016,-1067.13,0.00036164,9]
[419684040,1775280697025,-1884.9,0.00036164,9]
[419684041,1775280697034,-560.74,0.00036164,9]
[419684042,1775280697043,-500.0,0.00036164,9]
[419684043,1775280697052,-500.0,0.00036164,9]
[419684044,1775280697062,-500.0,0.00036164,9]
[419684045,1775280697071,-1331.36,0.00036164,9]
[419684046,1775280697081,-500.0,0.00036164,9]
[419684047,1775280697090,-500.0,0.00036164,9]
[419684048,1775280697100,-500.0,0.00036164,9]
[419684049,1775280697109,-835.147594,0.00036164,7]
[419684050,1775280697120,-835.147594,0.00036164,7]
[419684051,1775280697129,-1139.27329,0.00036164,7]
[419684052,1775280697138,-835.147594,0.00036164,7]
[419684053,1775280697147,-1139.27329,0.00036164,7]
[419684054,1775280697156,-651.88,0.00036164,9]
[419684055,1775280697165,-500.0,0.00036164,9]
[419684056,1775280697174,-1139.27329,0.00036164,7]
[419684057,1775280697183,-835.147594,0.00036164,7]
[419684058,1775280697192,-1139.27329,0.00036164,7]
[419684059,1775280697201,-500.0,0.00036164,9]
[419684060,1775280697210,-802.51,0.00036164,9]
[419684061,1775280697220,-500.0,0.00036164,9]
[419684062,1775280697230,-500.0,0.00036164,9]
[419684063,1775280697239,-668.57,0.00036164,9]
[419684064,1775280697248,-500.0,0.00036164,9]
[419684065,1775280697257,-500.0,0.00036164,9]
[419684066,1775280697267,-709.22,0.00036164,9]
[419684067,1775280697276,-1148.11,0.00036164,9]
[419684068,1775280697287,-614.06,0.00036164,9]
[419684069,1775280697296,-500.0,0.00036164,9]
[419684070,1775280697305,-500.0,0.00036164,9]
[419684071,1775280697314,-1164.93,0.00036164,9]
[419684072,1775280697323,-500.0,0.00036164,9]
[419684073,1775280697333,-500.0,0.00036164,9]
[419684074,1775280697342,-2086.14,0.00036164,9]
[419684075,1775280697351,-811.2,0.00036164,9]
[419684076,1775280697360,-554.8,0.00036164,9]
[419684077,1775280697369,-500.0,0.00036164,9]
[419684078,1775280697378,-500.0,0.00036164,9]
[419684079,1775280697387,-597.75,0.00036164,9]
[419684080,1775280697397,-623.4,0.00036164,9]
[419684081,1775280697406,-500.0,0.00036164,9]
[419684082,1775280697415,-1141.03,0.00036164,9]
[419684083,1775280697424,-1995.89,0.00036164,9]
[419684084,1775280697433,-694.19,0.00036164,9]
[419684085,1775280697442,-13734.68,0.00036164,9]
[419684086,1775280697451,-500.0,0.00036164,9]
[419684087,1775280697460,-810.03,0.00036164,9]
[419684088,1775280697470,-500.0,0.00036164,9]
[419684089,1775280697479,-500.0,0.00036164,9]
[419684090,1775280697488,-500.0,0.00036164,9]
[419684091,1775280697498,-907.86,0.00036164,9]
[419684092,1775280697507,-500.0,0.00036164,9]
[419684093,1775280697516,-1590.77,0.00036164,9]
[419684094,1775280697527,-3684.53,0.00036164,9]
[419684095,1775280697537,-2383.6,0.00036164,9]
[419684096,1775280697547,-238.39772717,0.00036164,9]
[419684097,1775280697556,-500.0,0.00036164,9]
[419684098,1775280697566,-500.0,0.00036164,9]
[419684099,1775280697575,-500.0,0.00036164,9]
[419684100,1775280697584,-851.14,0.00036164,9]
[419684101,1775280697595,-500.0,0.00036164,9]
[419684102,1775280697606,-500.0,0.00036164,9]
[419684103,1775280697616,-1104.72,0.00036164,9]
[419684104,1775280697626,-500.0,0.00036164,9]
[419684105,1775280697635,-500.0,0.00036164,9]
[419684106,1775280697646,-500.0,0.00036164,9]
[419684107,1775280697656,-914.08,0.00036164,9]
[419684108,1775280697667,-500.0,0.00036164,9]
[419684109,1775280697678,-500.0,0.00036164,9]
[419684110,1775280697687,-1858.66,0.00036164,9]
[419684111,1775280697697,-500.0,0.00036164,9]
[419684112,1775280697706,-514.88,0.00036164,9]
[419684113,1775280697716,-500.0,0.00036164,9]
[419684114,1775280697726,-2761.74,0.00036164,9]
[419684115,1775280697736,-1126.74,0.00036164,9]
[419684116,1775280697745,-504.82,0.00036164,9]
[419684117,1775280697755,-2760.69,0.00036164,9]
[419684118,1775280697765,-783.55,0.00036164,9]
[419684119,1775280697775,-552.62,0.00036164,9]
[419684120,1775280697785,-500.0,0.00036164,9]
[419684121,1775280697795,-3664.3,0.00036164,2]
[419684122,1775280697805,-630.24,0.00036164,9]
[419684123,1775280697815,-339.92342322,0.00036164,9]
[419684124,1775280697824,-1955.54,0.00036164,9]
[419684125,1775280697835,-2075.53,0.00036164,9]
[419684126,1775280697844,-500.0,0.00036164,9]
[419684127,1775280697855,-2874.35,0.00036164,9]
[419684128,1775280697865,-151.0,0.00036164,7]
[419684129,1775280697875,-500.0,0.00036164,9]
[419684130,1775280697885,-1052.25,0.00036164,9]
[419684131,1775280697895,-500.0,0.00036164,9]
[419684132,1775280697905,-1493.22,0.00036164,9]
[419684133,1775280697915,-151.0,0.00036164,7]
[419684134,1775280697925,-1053.01,0.00036164,9]
[419684135,1775280697935,-1613.95,0.00036164,9]
[419684136,1775280697944,-151.0,0.00036164,7]
[419684137,1775280697953,-1210.79,0.00036164,9]
[419684138,1775280697963,-500.0,0.00036164,9]
[419684139,1775280697972,-502.36408943,0.00036164,9]
[419684140,1775280697982,-670.88,0.00036164,9]
[419684141,1775280697992,-500.0,0.00036164,9]
[419684142,1775280698002,-500.0,0.00036164,9]
[419684143,1775280698012,-500.0,0.00036164,9]
[419684144,1775280698022,-500.0,0.00036164,9]
[419684145,1775280698032,-1547.37,0.00036164,9]
[419684146,1775280698042,-564.36,0.00036164,9]
[419684147,1775280698051,-1462.79,0.00036164,9]
[419684148,1775280698061,-867.55,0.00036164,7]
[419684149,1775280698071,-500.0,0.00036164,9]
[419684150,1775280698081,-500.0,0.00036164,9]
[419684151,1775280698091,-1034.95,0.00036164,9]
[419684152,1775280698100,-1397.46,0.00036164,9]
[419684153,1775280698111,-1347.98,0.00036164,9]
[419684154,1775280698121,-1120.58,0.00036164,9]
[419684155,1775280698131,-500.0,0.00036164,9]
[419684156,1775280698140,-2259.23,0.00036164,9]
[419684157,1775280698152,-502.26095124,0.00036164,7]
[419684158,1775280698162,-500.0,0.00036164,9]
[419684159,1775280698172,-500.0,0.00036164,9]
[419684160,1775280698182,-500.0,0.00036164,9]
[419684161,1775280698192,-506.55605316,0.00036164,9]
[419684162,1775280698201,-636.1067576,0.00036164,9]
[419684163,1775280698211,-1227.05,0.00036164,9]
[419684164,1775280698221,-2454.96,0.00036164,9]
[419684165,1775280698231,-1562.54,0.00036164,9]
[419684166,1775280698241,-1023.0,0.00036164,9]
[419684167,1775280698250,-766.51,0.00036164,9]
[419684168,1775280698260,-1251.23,0.00036164,9]
[419684169,1775280698270,-2177.44,0.00036164,9]
[419684170,1775280698280,-1865.55,0.00036164,9]
[419684171,1775280698290,-588.01624507,0.00036164,9]
[419684172,1775280698302,-1190.3,0.00036164,9]
[419684173,1775280698312,-1080.7,0.00036164,9]
[419684174,1775280698322,-500.0,0.00036164,9]
[419684175,1775280698333,-500.0,0.00036164,9]
[419684176,1775280698345,-500.0,0.00036164,9]
[419684177,1775280698356,-500.0,0.00036164,9]
[419684178,1775280698367,-500.0,0.00036164,9]
[419684179,1775280698379,-500.0,0.00036164,9]
[419684180,1775280698390,-1376.41,0.00036164,9]
[419684181,1775280698400,-2974.27,0.00036164,9]
[419684182,1775280698411,-2287.39,0.00036164,9]
[419684183,1775280698420,-612.81582109,0.00036164,9]
[419684184,1775280698430,-500.0,0.00036164,9]
[419684185,1775280698441,-1119.73,0.00036164,9]